fUST/lending_fUST_20250502
["ID","MTS","AMOUNT","RATE_DAILY","PERIOD"]
[359619497,1746186641705,-400.0,0.00019178,2]
[359619498,1746186641715,-6232.77,0.00019178,2]
[359619499,1746186641725,-400.0,0.00019178,2]
[359619500,1746186641734,-400.0,0.00019178,2]
[359619501,1746186641744,-400.0,0.00019178,2]
[359619502,1746186641753,-609.45,0.00019178,2]
[359619503,1746186641762,-501.25118012,0.00019178,2]
[359619504,1746186641772,-592.95,0.00019178,2]
[359619505,1746186641781,-870.29,0.00019178,2]
[359619506,1746186641791,-400.0,0.00019178,2]
[359619507,1746186641801,-400.0,0.00019178,2]
[359619508,1746186641814,-400.0,0.00019178,2]
[359619509,1746186641823,-514.48,0.00019178,2]
[359619510,1746186641833,-400.0,0.00019178,2]
[359619511,1746186641843,-489.95,0.00019178,2]
[359619512,1746186641852,-400.0,0.00019178,2]
[359619513,1746186641863,-400.0,0.00019178,2]
[359619514,1746186641872,-400.0,0.00019178,2]
[359619515,1746186641882,-400.0,0.00019178,2]
[359619516,1746186641893,-200.0,0.00019178,2]
[359619517,1746186641903,-608.26,0.00019178,2]
[359619518,1746186641913,-400.0,0.00019178,2]
[359619519,1746186641922,-714.58,0.00019178,2]
[359619520,1746186641932,-400.0,0.00019178,2]
[359619521,1746186641942,-205.89412048,0.00019178,2]
[359619522,1746186641951,-1055.49,0.00019178,2]
[359619523,1746186641962,-1055.49,0.00019178,2]
[359619524,1746186641972,-1055.49,0.00019178,2]
[359619525,1746186641983,-1055.49,0.00019178,2]
[359619526,1746186641993,-1055.49,0.00019178,2]
[359619527,1746186642002,-1055.49,0.00019178,2]
[359619528,1746186642012,-400.0,0.00019178,2]
[359619529,1746186642021,-1055.49,0.00019178,2]
[359619530,1746186642032,-400.0,0.00019178,2]
[359619531,1746186642043,-1055.49,0.00019178,2]
[359619532,1746186642052,-1055.49,0.00019178,2]
[359619533,1746186642063,-509.32,0.00019178,2]
[359619534,1746186642073,-1055.49,0.00019178,2]
[359619535,1746186642082,-1055.49,0.00019178,2]
[359619536,1746186642092,-1055.49,0.00019178,2]
[359619537,1746186642103,-1055.49,0.00019178,2]
[359619538,1746186642113,-1055.49,0.00019178,2]
[359619539,1746186642123,-400.0,0.00019178,2]
[359619540,1746186642133,-1055.49,0.00019178,2]
[359619541,1746186642143,-1055.49,0.00019178,2]
[359619542,1746186642153,-1055.49,0.00019178,2]
[359619543,1746186642162,-1055.49,0.00019178,2]
[359619544,1746186642172,-1055.49,0.00019178,2]
[359619545,1746186642182,-1055.49,0.00019178,2]
[359619546,1746186642192,-1055.49,0.00019178,2]
[359619547,1746186642202,-1055.49,0.00019178,2]
[359619548,1746186642212,-875.7,0.00019178,2]
[359619549,1746186642222,-1055.49,0.00019178,2]
[359619550,1746186642232,-1055.62971707,0.00019178,2]
[359619551,1746186642241,-400.0,0.00019178,2]
[359619552,1746186642252,-1572.15,0.00019178,2]
[359619553,1746186642262,-400.0,0.00019178,2]
[359619554,1746186642271,-1066.5,0.00019178,2]
[359619555,1746186642281,-880.37,0.00019178,2]
[359619556,1746186642291,-2383.89,0.00019178,2]
[359619557,1746186642302,-400.0,0.00019178,2]
[359619558,1746186642311,-202.13209969,0.00019178,2]
[359619559,1746186642322,-400.0,0.00019178,2]
[359619560,1746186642332,-436.79646345,0.00019178,2]
[359619561,1746186642342,-200.0,0.00019178,2]
[359619562,1746186642351,-400.0,0.00019178,2]
[359619563,1746186642361,-400.0,0.00019178,2]
[359619564,1746186642371,-825.0,0.00019178,2]
[359619565,1746186642381,-210.49084497,0.00019178,2]
[359619566,1746186642391,-400.0,0.00019178,2]
[359619567,1746186642400,-763.89,0.00019178,2]
[359619568,1746186642410,-664.37,0.00019178,2]
[359619569,1746186642419,-414.03848757,0.00019178,2]
[359619570,1746186642429,-1506.39,0.00019178,2]
[359619571,1746186642439,-400.0,0.00019178,2]
[359619572,1746186642449,-609.76,0.00019178,2]
[359619573,1746186642459,-200.0,0.00019178,2]
[359619574,1746186642469,-1191.47,0.00019178,2]
[359619575,1746186642479,-236.64366156,0.00019178,2]
[359619576,1746186642488,-400.0,0.00019178,2]
[359619577,1746186642497,-200.0,0.00019178,2]
[359619578,1746186642507,-407.86332241,0.00019178,2]
[359619579,1746186642516,-400.0,0.00019178,2]
[359619580,1746186642525,-400.0,0.00019178,2]
[359619581,1746186642535,-400.0,0.00019178,2]
[359619582,1746186642545,-400.0,0.00019178,2]
[359619583,1746186642555,-2035.04,0.00019178,2]
[359619584,1746186642564,-2625.14,0.00019178,2]
[359619585,1746186642574,-1742.66,0.00019178,2]
[359619586,1746186642584,-400.0,0.00019178,2]
[359619587,1746186642593,-201.31831115,0.00019178,2]
[359619588,1746186642603,-400.0,0.00019178,2]
[359619589,1746186642613,-5606.22,0.00019178,2]
[359619590,1746186642622,-206.49366621,0.00019178,2]
[359619591,1746186642632,-400.0,0.00019178,2]
[359619592,1746186642642,-200.0,0.00019178,2]
[359619593,1746186642651,-2124.58,0.00019178,2]
[359619594,1746186642661,-400.0,0.00019178,2]
[359619595,1746186642670,-400.25,0.00019178,2]
[359619596,1746186642680,-300.0,0.00019178,2]
[359619597,1746186642689,-400.0,0.00019178,2]
[359619598,1746186642700,-400.0,0.00019178,2]
[359619599,1746186642709,-639.24,0.00019178,2]
[359619600,1746186642719,-458.97,0.00019178,2]
[359619601,1746186642728,-3073.17,0.00019178,2]
[359619602,1746186642738,-324.96895251,0.00019178,2]
[359619603,1746186642748,-400.0,0.00019178,2]
[359619604,1746186642758,-400.0,0.00019178,2]
[359619605,1746186642769,-507.66796083,0.00019178,2]
[359619606,1746186642779,-400.0,0.00019178,2]
[359619607,1746186642790,-400.0,0.00019178,2]
[359619608,1746186642800,-400.0,0.00019178,2]
[359619609,1746186642811,-4878.62,0.00019178,2]
[359619610,1746186642822,-400.0,0.00019178,2]
[359619611,1746186642832,-526.46,0.00019178,2]
[359619612,1746186642842,-400.0,0.00019178,2]
[359619613,1746186642852,-400.0,0.00019178,2]
[359619614,1746186642862,-400.0,0.00019178,2]
[359619615,1746186642871,-400.0,0.00019178,2]
[359619616,1746186642881,-400.0,0.00019178,2]
[359619617,1746186642890,-400.0,0.00019178,2]
[359619618,1746186642903,-400.0,0.00019178,2]
[359619619,1746186642913,-400.0,0.00019178,2]
[359619620,1746186642922,-208.31094487,0.00019178,2]
[359619621,1746186642932,-400.0,0.00019178,2]
[359619622,1746186642942,-200.0,0.00019178,2]
[359619623,1746186642952,-2109.88,0.00019178,2]
[359619624,1746186642961,-622.53,0.00019178,2]
[359619627,1746186642971,-400.0,0.00019178,2]
[359619629,1746186642980,-2584.58,0.00019178,2]
[359619631,1746186642990,-400.0,0.00019178,2]
[359619633,1746186642999,-670.51,0.00019178,2]
[359619635,1746186643009,-2728.13,0.00019178,2]
[359619637,1746186643019,-200.0,0.00019178,2]
[359619639,1746186643029,-683.36,0.00019178,2]
[359619641,1746186643038,-400.0,0.00019178,2]
[359619643,1746186643048,-400.0,0.00019178,2]
[359619645,1746186643057,-498.75,0.00019178,2]
[359619647,1746186643067,-579.93,0.00019178,2]
[359619649,1746186643077,-1419.57,0.00019178,2]
[359619652,1746186643086,-524.24,0.00019178,2]
[359619654,1746186643095,-400.0,0.00019178,2]
[359619655,1746186643105,-2345.86,0.00019178,2]
[359619656,1746186643114,-400.0,0.00019178,2]
[359619657,1746186643124,-400.0,0.00019178,2]
[359619658,1746186643134,-412.54948581,0.00019178,2]
[359619659,1746186643144,-400.0,0.00019178,2]
[359619660,1746186643154,-400.0,0.00019178,2]
[359619661,1746186643164,-527.85,0.00019178,2]
[359619662,1746186643174,-1294.53,0.00019178,2]
[359619663,1746186643183,-400.0,0.00019178,2]
[359619664,1746186643193,-400.0,0.00019178,2]
[359619665,1746186643203,-400.0,0.00019178,2]
[359619666,1746186643212,-434.7,0.00019178,2]
[359619667,1746186643222,-400.0,0.00019178,2]
[359619668,1746186643231,-206.67167248,0.00019178,2]
[359619669,1746186643241,-868.55,0.00019178,2]
[359619670,1746186643252,-400.0,0.00019178,2]
[359619671,1746186643262,-400.0,0.00019178,2]
[359619674,1746186643432,-400.0,0.00019178,2]
[359619675,1746186643443,-496.61281029,0.00019178,2]
[359619676,1746186643453,-400.0,0.00019178,2]
[359619677,1746186643463,-1495.45,0.00019178,2]
[359619678,1746186643472,-400.0,0.00019178,2]
[359619679,1746186643484,-400.0,0.00019178,2]
[359619680,1746186643493,-400.0,0.00019178,2]
[359619681,1746186643502,-301.19973974,0.00019178,2]
[359619682,1746186643512,-968.81,0.00019178,2]
[359619683,1746186643522,-400.0,0.00019178,2]
[359619684,1746186643531,-400.0,0.00019178,2]
[359619685,1746186643541,-614.72,0.00019178,2]
[359619686,1746186643550,-400.0,0.00019178,2]
[359619687,1746186643560,-1045.94,0.00019178,2]
[359619688,1746186643569,-400.0,0.00019178,2]
[359619689,1746186643579,-491.07,0.00019178,2]
[359619690,1746186643588,-594.06,0.00019178,2]
[359619691,1746186643598,-500.0,0.00019178,2]
[359619692,1746186643607,-439.01574218,0.00019178,2]
[359619693,1746186643617,-1509.05,0.00019178,2]
[359619694,1746186643626,-2106.12,0.00019178,2]
[359619695,1746186643637,-2080.71,0.00019178,2]
[359619696,1746186643647,-2838.92,0.00019178,2]
[359619697,1746186643656,-204.62445245,0.00019178,2]
[359619698,1746186643665,-400.0,0.00019178,2]
[359619699,1746186643675,-157.27514836,0.00019178,2]
[359619700,1746186643685,-400.0,0.00019178,2]
[359619701,1746186643694,-2531.5,0.00019178,2]
[359619702,1746186643704,-400.0,0.00019178,2]
[359619703,1746186643714,-400.0,0.00019178,2]
[359619704,1746186643724,-500.0,0.00019178,2]
[359619705,1746186643733,-400.0,0.00019178,2]
[359619706,1746186643742,-400.0,0.00019178,2]
[359619707,1746186643751,-316.976757,0.00019178,2]
[359619708,1746186643760,-400.0,0.00019178,2]
[359619709,1746186643770,-400.0,0.00019178,2]
[359619710,1746186643779,-400.0,0.00019178,2]
[359619711,1746186643788,-539.54,0.00019178,2]
[359619712,1746186643797,-400.0,0.00019178,2]
[359619713,1746186643807,-543.18,0.00019178,2]
[359619714,1746186643821,-2053.87,0.00019178,2]
[359619715,1746186643831,-1065.32,0.00019178,2]
[359619716,1746186643840,-400.0,0.00019178,2]
[359619717,1746186643849,-400.0,0.00019178,2]
[359619718,1746186643859,-6985.45,0.00019178,2]
[359619719,1746186643868,-400.0,0.00019178,2]
[359619720,1746186643877,-797.01,0.00019178,2]
[359619721,1746186643888,-400.0,0.00019178,2]
[359619722,1746186643897,-400.0,0.00019178,2]
[359619723,1746186643907,-400.0,0.00019178,2]
[359619724,1746186643917,-400.0,0.00019178,2]
[359619725,1746186643927,-400.0,0.00019178,2]
[359619726,1746186643936,-683.72,0.00019178,2]
[359619727,1746186643946,-2140.12,0.00019178,2]
[359619728,1746186643955,-1071.47,0.00019178,2]
[359619729,1746186643965,-865.72,0.00019178,2]
[359619730,1746186643974,-571.44,0.00019178,2]
[359619731,1746186643984,-1778.57,0.00019178,2]
[359619732,1746186643994,-400.0,0.00019178,2]
[359619733,1746186644003,-400.0,0.00019178,2]
[359619734,1746186644013,-400.0,0.00019178,2]
[359619735,1746186644023,-400.0,0.00019178,2]
[359619736,1746186644032,-636.02,0.00019178,2]
[359619737,1746186644042,-400.0,0.00019178,2]
[359619738,1746186644051,-2651.72,0.00019178,2]
[359619739,1746186644061,-400.0,0.00019178,2]
[359619740,1746186644072,-577.39,0.00019178,2]
[359619741,1746186644081,-2363.62,0.00019178,2]
[359619742,1746186644090,-400.0,0.00019178,2]
[359619743,1746186644101,-201.09960788,0.00019178,2]
[359619744,1746186644110,-571.5,0.00019178,2]
[359619745,1746186644119,-1876.1,0.00019178,2]
[359619746,1746186644129,-1350.35,0.00019178,2]
[359619747,1746186644139,-519.5310755,0.00019178,2]
[359619748,1746186644149,-400.0,0.00019178,2]
[359619749,1746186644159,-1953.57,0.00019178,2]
[359619750,1746186644169,-896.66,0.00019178,2]
[359619751,1746186644179,-400.0,0.00019178,2]
[359619752,1746186644188,-605.14,0.00019178,2]
[359619753,1746186644198,-808.6,0.00019178,2]
[359619754,1746186644208,-400.0,0.00019178,2]
[359619755,1746186644218,-571.97,0.00019178,2]
[359619756,1746186644228,-203.85090846,0.00019178,2]
[359619757,1746186644237,-400.0,0.00019178,2]
[359619758,1746186644247,-528.27621141,0.00019178,2]
[359619759,1746186644257,-400.0,0.00019178,2]
[359619760,1746186644268,-1543.03,0.00019178,2]
[359619761,1746186644278,-400.0,0.00019178,2]
[359619762,1746186644287,-400.0,0.00019178,2]
[359619763,1746186644297,-400.0,0.00019178,2]
[359619764,1746186644306,-400.0,0.00019178,2]
[359619765,1746186644315,-400.0,0.00019178,2]
[359619766,1746186644325,-549.56,0.00019178,2]
[359619767,1746186644335,-1202.85,0.00019178,2]
[359619768,1746186644344,-4894.55,0.00019178,2]
[359619769,1746186644354,-886.4,0.00019178,2]
[359619770,1746186644364,-499.65,0.00019178,2]
[359619771,1746186644373,-500.77010991,0.00019178,2]
[359619772,1746186644383,-400.0,0.00019178,2]
[359619773,1746186644393,-400.0,0.00019178,2]
[359619774,1746186644403,-510.89654345,0.00019178,2]
[359619775,1746186644413,-183.827281,0.00019178,2]
[359619776,1746186644422,-160.0,0.00019213,3]
[359619777,1746186644432,-12598.98820072,0.00019213,3]
[359619778,1746186644442,-182.12647014,0.00019213,3]
[359619779,1746186644451,-841.31989156,0.00019213,3]
[359619780,1746186644461,-545.0,0.00019236,2]
[359619781,1746186644471,-2244.0,0.00019236,2]
[359619782,1746186644481,-202.467,0.00019236,2]
[359619783,1746186644490,-160.0,0.00019347,2]
[359619784,1746186644500,-160.0,0.00019347,2]
[359619785,1746186644510,-160.0,0.00019347,2]
[359619786,1746186644520,-160.0,0.00019347,2]
[359619787,1746186644529,-706.62,0.00019397,3]
[359619788,1746186644538,-353.32,0.00019397,3]
[359619789,1746186644548,-500.0,0.00019452,2]
[359619790,1746186644558,-400.0,0.00019452,2]
[359619791,1746186644567,-163.43229242,0.00019452,2]
[359619792,1746186644577,-400.0,0.00019452,2]
[359619793,1746186644586,-400.0,0.00019452,2]
[359619794,1746186644596,-400.0,0.00019452,2]
[359619795,1746186644605,-400.0,0.00019452,2]
[359619796,1746186644615,-400.0,0.00019452,2]
[359619797,1746186644624,-400.0,0.00019452,2]
[359619798,1746186644636,-400.0,0.00019452,2]
[359619799,1746186644645,-423.69,0.00019452,2]
[359619800,1746186644655,-400.0,0.00019452,2]
[359619801,1746186644664,-400.0,0.00019452,2]
[359619802,1746186644674,-400.0,0.00019452,2]
[359619803,1746186644684,-400.0,0.00019452,2]
[359619804,1746186644693,-400.0,0.00019452,2]
[359619805,1746186644704,-400.0,0.00019452,2]
[359619806,1746186644714,-622.88,0.00019452,2]
[359619807,1746186644724,-400.0,0.00019452,2]
[359619808,1746186644733,-510.57,0.00019452,2]
[359619809,1746186644742,-400.0,0.00019452,2]
[359619810,1746186644753,-400.0,0.00019452,2]
[359619811,1746186644763,-400.0,0.00019452,2]
[359619812,1746186644772,-400.0,0.00019452,2]
[359619813,1746186644781,-400.0,0.00019452,2]
[359619814,1746186644791,-400.0,0.00019452,2]
[359619815,1746186644802,-400.0,0.00019452,2]
[359619816,1746186644813,-238.88738508,0.00019452,2]
[359619817,1746186644824,-400.0,0.00019452,2]
[359619818,1746186644834,-400.0,0.00019452,2]
[359619819,1746186644844,-438.74,0.00019452,2]
[359619820,1746186644856,-577.17,0.00019452,2]
[359619821,1746186644865,-400.0,0.00019452,2]
[359619822,1746186644874,-421.31,0.00019452,2]
[359619823,1746186644884,-445.95932143,0.00019452,2]
[359619824,1746186644894,-1179.12,0.00019452,2]
[359619825,1746186644903,-648.0,0.00019452,2]
[359619826,1746186644913,-400.0,0.00019452,2]
[359619827,1746186644923,-400.0,0.00019452,2]
[359619828,1746186644932,-400.0,0.00019452,2]
[359619829,1746186644942,-400.0,0.00019452,2]
[359619830,1746186644952,-400.0,0.00019452,2]
[359619831,1746186644962,-241.91797129,0.00019452,2]
[359619832,1746186644972,-400.0,0.00019452,2]
[359619833,1746186644982,-400.0,0.00019452,2]
[359619834,1746186644992,-1886.08,0.00019452,2]
[359619835,1746186645002,-400.0,0.00019452,2]
[359619836,1746186645013,-400.0,0.00019452,2]
[359619837,1746186645022,-400.0,0.00019452,2]
[359619838,1746186645032,-400.0,0.00019452,2]
[359619839,1746186645042,-400.0,0.00019452,2]
[359619840,1746186645051,-599.84,0.00019452,2]
[359619841,1746186645061,-400.0,0.00019452,2]
[359619842,1746186645070,-400.0,0.00019452,2]
[359619843,1746186645080,-1037.11,0.00019452,2]
[359619844,1746186645090,-400.0,0.00019452,2]
[359619845,1746186645099,-400.0,0.00019452,2]
[359619846,1746186645109,-611.45,0.00019452,2]
[359619847,1746186645118,-400.0,0.00019452,2]
[359619848,1746186645128,-1046.86,0.00019452,2]
[359619849,1746186645139,-662.9,0.00019452,2]
[359619850,1746186645150,-695.51,0.00019452,2]
[359619851,1746186645160,-400.0,0.00019452,2]
[359619852,1746186645169,-400.0,0.00019452,2]
[359619853,1746186645179,-400.0,0.00019452,2]
[359619854,1746186645188,-445.84745302,0.00019452,2]
[359619855,1746186645198,-650.59,0.00019452,2]
[359619856,1746186645208,-400.0,0.00019452,2]
[359619857,1746186645217,-400.0,0.00019452,2]
[359619858,1746186645228,-400.0,0.00019452,2]
[359619859,1746186645239,-400.0,0.00019452,2]
[359619860,1746186645249,-400.0,0.00019452,2]
[359619861,1746186645259,-965.89,0.00019452,2]
[359619862,1746186645269,-1427.8,0.00019452,2]
[359619863,1746186645280,-400.0,0.00019452,2]
[359619864,1746186645290,-747.04,0.00019452,2]
[359619865,1746186645300,-400.0,0.00019452,2]
[359619866,1746186645310,-926.82,0.00019452,2]
[359619867,1746186645319,-400.0,0.00019452,2]
[359619868,1746186645329,-400.0,0.00019452,2]
[359619869,1746186645339,-725.7,0.00019452,2]
[359619870,1746186645348,-402.92,0.00019452,2]
[359619871,1746186645358,-1150.81,0.00019452,2]
[359619872,1746186645368,-400.0,0.00019452,2]
[359619873,1746186645378,-400.0,0.00019452,2]
[359619874,1746186645388,-400.99,0.00019452,2]
[359619875,1746186645398,-562.15,0.00019452,2]
[359619876,1746186645408,-400.0,0.00019452,2]
[359619877,1746186645418,-400.0,0.00019452,2]
[359619878,1746186645428,-734.15,0.00019452,2]
[359619879,1746186645438,-400.0,0.00019452,2]
[359619880,1746186645447,-456.28,0.00019452,2]
[359619881,1746186645457,-400.0,0.00019452,2]
[359619882,1746186645466,-858.78,0.00019452,2]
[359619883,1746186645476,-509.88,0.00019452,2]
[359619884,1746186645486,-510.59,0.00019452,2]
[359619885,1746186645496,-476.81,0.00019452,2]
[359619886,1746186645506,-400.0,0.00019452,2]
[359619887,1746186645516,-661.49,0.00019452,2]
[359619888,1746186645526,-1240.91,0.00019452,2]
[359619889,1746186645536,-400.0,0.00019452,2]
[359619890,1746186645546,-581.96,0.00019452,2]
[359619891,1746186645556,-1155.35,0.00019452,2]
[359619892,1746186645566,-495.7,0.00019452,2]
[359619893,1746186645576,-400.0,0.00019452,2]
[359619894,1746186645586,-400.0,0.00019452,2]
[359619895,1746186645595,-1499.66,0.00019452,2]
[359619896,1746186645605,-400.0,0.00019452,2]
[359619897,1746186645614,-468.94,0.00019452,2]
[359619898,1746186645623,-151.15,0.00019452,2]
[359619899,1746186645633,-400.0,0.00019452,2]
[359619900,1746186645642,-400.0,0.00019452,2]
[359619901,1746186645652,-516.60874224,0.00019452,2]
[359619902,1746186645662,-2571.74,0.00019452,2]
[359619903,1746186645671,-561.99,0.00019452,2]
[359619904,1746186645681,-400.0,0.00019452,2]
[359619905,1746186645691,-400.0,0.00019452,2]
[359619906,1746186645701,-400.0,0.00019452,2]
[359619907,1746186645712,-650.81,0.00019452,2]
[359619908,1746186645724,-400.0,0.00019452,2]
[359619909,1746186645734,-400.0,0.00019452,2]
[359619910,1746186645746,-400.0,0.00019452,2]
[359619911,1746186645756,-402.13405264,0.00019452,2]
[359619912,1746186645766,-400.0,0.00019452,2]
[359619913,1746186645776,-509.47733899,0.00019452,2]
[359619914,1746186645786,-400.0,0.00019452,2]
[359619915,1746186645795,-400.0,0.00019452,2]
[359619916,1746186645806,-1006.72,0.00019452,2]
[359619917,1746186645820,-1521.26,0.00019452,2]
[359619919,1746186645829,-1546.21,0.00019452,2]
[359619920,1746186645839,-400.0,0.00019452,2]
[359619921,1746186645851,-400.0,0.00019452,2]
[359619922,1746186645899,-520.13363271,0.00019452,2]
[359619923,1746186645908,-400.0,0.00019452,2]
[359619924,1746186645918,-400.0,0.00019452,2]
[359619925,1746186645928,-6232.77,0.00019452,2]
[359619926,1746186645937,-400.0,0.00019452,2]
[359619927,1746186645947,-400.0,0.00019452,2]
[359619928,1746186645957,-609.45,0.00019452,2]
[359619929,1746186645967,-592.95,0.00019452,2]
[359619930,1746186645976,-870.29,0.00019452,2]
[359619931,1746186645986,-400.0,0.00019452,2]
[359619932,1746186645995,-400.0,0.00019452,2]
[359619933,1746186646005,-400.0,0.00019452,2]
[359619934,1746186646015,-514.48,0.00019452,2]
[359619935,1746186646024,-489.95,0.00019452,2]
[359619936,1746186646034,-400.0,0.00019452,2]
[359619937,1746186646043,-400.0,0.00019452,2]
[359619938,1746186646053,-400.0,0.00019452,2]
[359619939,1746186646063,-608.26,0.00019452,2]
[359619940,1746186646072,-714.58,0.00019452,2]
[359619941,1746186646081,-400.0,0.00019452,2]
[359619942,1746186646091,-400.0,0.00019452,2]
[359619943,1746186646100,-400.0,0.00019452,2]
[359619944,1746186646109,-509.32,0.00019452,2]
[359619945,1746186646119,-875.7,0.00019452,2]
[359619946,1746186646129,-400.0,0.00019452,2]
[359619947,1746186646138,-1572.15,0.00019452,2]
[359619948,1746186646148,-400.0,0.00019452,2]
[359619949,1746186646158,-1066.5,0.00019452,2]
[359619950,1746186646167,-880.37,0.00019452,2]
[359619951,1746186646177,-2383.89,0.00019452,2]
[359619952,1746186646187,-400.0,0.00019452,2]
[359619953,1746186646196,-400.0,0.00019452,2]
[359619954,1746186646206,-400.0,0.00019452,2]
[359619955,1746186646215,-825.0,0.00019452,2]
[359619956,1746186646224,-400.0,0.00019452,2]
[359619957,1746186646234,-763.89,0.00019452,2]
[359619958,1746186646244,-664.37,0.00019452,2]
[359619959,1746186646254,-1506.39,0.00019452,2]
[359619960,1746186646263,-400.0,0.00019452,2]
[359619961,1746186646273,-609.76,0.00019452,2]
[359619962,1746186646284,-1191.47,0.00019452,2]
[359619963,1746186646293,-400.0,0.00019452,2]
[359619964,1746186646303,-400.0,0.00019452,2]
[359619965,1746186646313,-400.0,0.00019452,2]
[359619966,1746186646324,-400.0,0.00019452,2]
[359619967,1746186646333,-2035.04,0.00019452,2]
[359619969,1746186646343,-2625.14,0.00019452,2]
[359619970,1746186646352,-1742.66,0.00019452,2]
[359619971,1746186646362,-400.0,0.00019452,2]
[359619972,1746186646371,-400.0,0.00019452,2]
[359619973,1746186646381,-5606.22,0.00019452,2]
[359619974,1746186646391,-400.0,0.00019452,2]
[359619975,1746186646401,-2124.58,0.00019452,2]
[359619976,1746186646411,-400.0,0.00019452,2]
[359619977,1746186646421,-400.25,0.00019452,2]
[359619978,1746186646431,-400.0,0.00019452,2]
[359619979,1746186646440,-265.46865232,0.00019452,2]
[359619980,1746186646450,-639.24,0.00019452,2]
[359619981,1746186646460,-458.97,0.00019452,2]
[359619982,1746186646470,-3073.17,0.00019452,2]
[359619983,1746186646480,-400.0,0.00019452,2]
[359619984,1746186646489,-400.0,0.00019452,2]
[359619985,1746186646499,-400.0,0.00019452,2]
[359619986,1746186646508,-400.0,0.00019452,2]
[359619987,1746186646518,-400.0,0.00019452,2]
[359619988,1746186646528,-400.0,0.00019452,2]
[359619989,1746186646538,-4878.62,0.00019452,2]
[359619990,1746186646547,-526.46,0.00019452,2]
[359619991,1746186646557,-400.0,0.00019452,2]
[359619992,1746186646566,-400.0,0.00019452,2]
[359619993,1746186646577,-400.0,0.00019452,2]
[359619994,1746186646586,-400.0,0.00019452,2]
[359619995,1746186646596,-400.0,0.00019452,2]
[359619996,1746186646605,-400.0,0.00019452,2]
[359619997,1746186646615,-400.0,0.00019452,2]
[359619998,1746186646624,-2109.88,0.00019452,2]
[359619999,1746186646635,-622.53,0.00019452,2]
[359620000,1746186646644,-400.0,0.00019452,2]
[359620001,1746186646655,-2584.58,0.00019452,2]
[359620002,1746186646665,-400.0,0.00019452,2]
[359620003,1746186646675,-670.51,0.00019452,2]
[359620004,1746186646685,-2728.13,0.00019452,2]
[359620005,1746186646694,-683.36,0.00019452,2]
[359620006,1746186646704,-191.8704407,0.00019452,2]
[359620007,1746186646714,-400.0,0.00019452,2]
[359620008,1746186646724,-498.75,0.00019452,2]
[359620009,1746186646734,-579.93,0.00019452,2]
[359620010,1746186646743,-1419.57,0.00019452,2]
[359620011,1746186646753,-524.24,0.00019452,2]
[359620012,1746186646763,-400.0,0.00019452,2]
[359620013,1746186646772,-2345.86,0.00019452,2]
[359620014,1746186646782,-400.0,0.00019452,2]
[359620015,1746186646791,-400.0,0.00019452,2]
[359620016,1746186646801,-400.0,0.00019452,2]